[Event "*** Titled Tuesday Blitz"]
[Site "Chess.com"]
[Date "2021.03.30"]
[Round "6"]
[White "AldokhinIvan"]
[Black "Nemsko"]
[Result "1-0"]
[WhiteElo "2525"]
[BlackElo "2328"]
[TimeControl "180+1"]
[EndTime "11:04:26 PDT"]
[Termination "AldokhinIvan won by resignation"]

1. e4 {[%clk 0:03:00.9]} 1... c5 {[%clk 0:03:00.1]} 2. Nf3 {[%clk 0:03:00.5]}
2... d6 {[%clk 0:03:00.6]} 3. d4 {[%clk 0:03:00.5]} 3... cxd4 {[%clk 0:03:01.5]}
4. Nxd4 {[%clk 0:03:00.7]} 4... Nf6 {[%clk 0:03:01.9]} 5. Nc3 {[%clk 0:03:01.1]}
5... Nc6 {[%clk 0:03:02]} 6. Bg5 {[%clk 0:02:58.8]} 6... e6 {[%clk 0:03:02.1]}
7. Qd2 {[%clk 0:02:59.1]} 7... Bd7 {[%clk 0:03:02.1]} 8. h4 {[%clk 0:02:59.3]}
8... a6 {[%clk 0:03:01.7]} 9. O-O-O {[%clk 0:02:59.6]} 9... b5 {[%clk
0:03:00.9]} 10. f3 {[%clk 0:02:58.2]} 10... h6 {[%clk 0:02:59.4]} 11. Be3 {[%clk
0:02:56.3]} 11... Be7 {[%clk 0:02:55.4]} 12. g4 {[%clk 0:02:52.7]} 12... Qa5
{[%clk 0:02:46.6]} 13. Nb3 {[%clk 0:02:48.5]} 13... Qc7 {[%clk 0:02:44.6]} 14.
Be2 {[%clk 0:02:41.1]} 14... Ne5 {[%clk 0:02:32.5]} 15. g5 {[%clk 0:02:38.1]}
15... Ng8 {[%clk 0:02:28.6]} 16. f4 {[%clk 0:02:32.8]} 16... Nc4 {[%clk
0:02:28.4]} 17. Bxc4 {[%clk 0:02:32.1]} 17... bxc4 {[%clk 0:02:27.2]} 18. Nd4
{[%clk 0:02:29.7]} 18... Rb8 {[%clk 0:02:05.5]} 19. f5 {[%clk 0:02:15.1]} 19...
Qa5 {[%clk 0:01:47]} 20. g6 {[%clk 0:01:45.9]} 20... fxg6 {[%clk 0:01:43.2]} 21.
fxe6 {[%clk 0:01:44.4]} 21... Bb5 {[%clk 0:01:33.6]} 22. Qg2 {[%clk 0:01:15]}
22... Bf6 {[%clk 0:01:24.1]} 23. Qxg6+ {[%clk 0:01:11.5]} 23... Kd8 {[%clk
0:01:23.4]} 24. Ndxb5 {[%clk 0:00:58.3]} 24... axb5 {[%clk 0:01:20.7]} 25. Rxd6+
{[%clk 0:00:56.5]} 25... Kc7 {[%clk 0:01:20.1]} 26. Rd7+ {[%clk 0:00:51]} 26...
Kc8 {[%clk 0:01:16.6]} 27. Qe8+ {[%clk 0:00:45.9]} 27... Bd8 {[%clk 0:01:11.5]}
28. Nd5 {[%clk 0:00:45.6]} 1-0

[Event "*** Titled Tuesday Blitz"]
[Site "Chess.com"]
[Date "2021.03.30"]
[Round "6"]
[White "MF1966Idrisov"]
[Black "Skat2704"]
[Result "1/2-1/2"]
[WhiteElo "2363"]
[BlackElo "2615"]
[TimeControl "180+1"]
[EndTime "11:04:34 PDT"]
[Termination "Game drawn by repetition"]

1. Nf3 {[%clk 0:03:00.9]} 1... d5 {[%clk 0:02:59.2]} 2. b3 {[%clk 0:03:01]} 2...
c5 {[%clk 0:02:58.6]} 3. Bb2 {[%clk 0:03:01.2]} 3... Nc6 {[%clk 0:02:57.5]} 4.
e3 {[%clk 0:03:01.5]} 4... e6 {[%clk 0:02:56.5]} 5. d4 {[%clk 0:03:01.6]} 5...
Nf6 {[%clk 0:02:55.3]} 6. Bd3 {[%clk 0:03:01.7]} 6... Be7 {[%clk 0:02:53.3]} 7.
Nbd2 {[%clk 0:03:01.7]} 7... O-O {[%clk 0:02:51.8]} 8. O-O {[%clk 0:03:01.5]}
8... b6 {[%clk 0:02:49.6]} 9. Ne5 {[%clk 0:02:58.7]} 9... Bb7 {[%clk 0:02:46.8]}
10. a3 {[%clk 0:02:56.5]} 10... Rc8 {[%clk 0:02:43.7]} 11. f4 {[%clk 0:02:52.7]}
11... Bd6 {[%clk 0:02:40.3]} 12. Qf3 {[%clk 0:02:52.1]} 12... Ne7 {[%clk
0:02:37.2]} 13. Qh3 {[%clk 0:02:51.5]} 13... Ng6 {[%clk 0:02:32.8]} 14. g4
{[%clk 0:02:44.1]} 14... c4 {[%clk 0:02:27.8]} 15. bxc4 {[%clk 0:02:37.8]} 15...
dxc4 {[%clk 0:02:25.3]} 16. Ndxc4 {[%clk 0:02:37.6]} 16... Bxe5 {[%clk
0:02:20.8]} 17. dxe5 {[%clk 0:02:24.3]} 17... Ne4 {[%clk 0:02:17.4]} 18. Rad1
{[%clk 0:02:17.6]} 18... Qc7 {[%clk 0:02:09.8]} 19. Nd6 {[%clk 0:02:13]} 19...
Nxd6 {[%clk 0:02:06.1]} 20. exd6 {[%clk 0:02:13.2]} 20... Qc5 {[%clk 0:02:05.4]}
21. Bd4 {[%clk 0:02:08.3]} 21... Qxd6 {[%clk 0:02:02.3]} 22. Bxg6 {[%clk
0:02:07]} 22... fxg6 {[%clk 0:01:59.1]} 23. Bxg7 {[%clk 0:02:05.7]} 23... Qc6
{[%clk 0:01:57]} 24. Bxf8 {[%clk 0:01:54.8]} 24... Rxf8 {[%clk 0:01:57.9]} 25.
Rd2 {[%clk 0:01:47.9]} 25... e5 {[%clk 0:01:51.9]} 26. Qg3 {[%clk 0:01:39.6]}
26... Qe4 {[%clk 0:01:48.6]} 27. f5 {[%clk 0:01:35.2]} 27... Rc8 {[%clk
0:01:40.6]} 28. h4 {[%clk 0:01:20.5]} 28... Qh1+ {[%clk 0:01:36]} 29. Kf2 {[%clk
0:01:19.3]} 29... Qe4 {[%clk 0:01:36.9]} 30. Rfd1 {[%clk 0:01:09.5]} 30... Rxc2
{[%clk 0:01:33.6]} 31. fxg6 {[%clk 0:01:06]} 31... hxg6 {[%clk 0:01:30.3]} 32.
h5 {[%clk 0:01:01.6]} 32... g5 {[%clk 0:01:25.6]} 33. Rxc2 {[%clk 0:00:56.4]}
33... Qxc2+ {[%clk 0:01:24.8]} 34. Ke1 {[%clk 0:00:56.7]} 34... Qc3+ {[%clk
0:01:22.9]} 35. Rd2 {[%clk 0:00:56.4]} 35... Qc1+ {[%clk 0:01:20.8]} 36. Rd1
{[%clk 0:00:56.5]} 36... Qc3+ {[%clk 0:01:20.5]} 37. Rd2 {[%clk 0:00:56.9]}
37... Qc1+ {[%clk 0:01:19.1]} 38. Rd1 {[%clk 0:00:57.2]} 38... Qc3+ {[%clk
0:01:18.8]} 1/2-1/2

[Event "*** Titled Tuesday Blitz"]
[Site "Chess.com"]
[Date "2021.03.30"]
[Round "6"]
[White "DenLaz"]
[Black "Revnov"]
[Result "1-0"]
[WhiteElo "2844"]
[BlackElo "2671"]
[TimeControl "180+1"]
[EndTime "11:04:39 PDT"]
[Termination "DenLaz won by resignation"]

1. d4 {[%clk 0:03:00.7]} 1... d5 {[%clk 0:02:59.5]} 2. c4 {[%clk 0:03:00.8]}
2... e6 {[%clk 0:02:59.8]} 3. Nf3 {[%clk 0:03:00.6]} 3... c6 {[%clk 0:02:59.5]}
4. Qc2 {[%clk 0:02:59.1]} 4... Nf6 {[%clk 0:02:56.6]} 5. g3 {[%clk 0:02:56.6]}
5... Nbd7 {[%clk 0:02:53.8]} 6. Nbd2 {[%clk 0:02:55.3]} 6... Bb4 {[%clk
0:02:47.8]} 7. Bg2 {[%clk 0:02:54.5]} 7... O-O {[%clk 0:02:46]} 8. O-O {[%clk
0:02:53.4]} 8... Qe7 {[%clk 0:02:45.8]} 9. e4 {[%clk 0:02:52.5]} 9... Bxd2
{[%clk 0:02:36.7]} 10. Nxd2 {[%clk 0:02:50]} 10... dxc4 {[%clk 0:02:23.2]} 11.
Nxc4 {[%clk 0:02:46.9]} 11... b6 {[%clk 0:02:21.4]} 12. Bf4 {[%clk 0:02:28.6]}
12... Ne8 {[%clk 0:02:10.8]} 13. Rfd1 {[%clk 0:01:45.4]} 13... Ba6 {[%clk
0:02:04.5]} 14. Rac1 {[%clk 0:01:44.1]} 14... Rc8 {[%clk 0:02:04]} 15. Qa4
{[%clk 0:01:39.5]} 15... Bxc4 {[%clk 0:01:56.3]} 16. Qxc4 {[%clk 0:01:40.4]}
16... Nef6 {[%clk 0:01:48.6]} 17. Qa6 {[%clk 0:01:36.4]} 17... e5 {[%clk
0:01:31.9]} 18. dxe5 {[%clk 0:01:23]} 18... Nxe5 {[%clk 0:01:32.8]} 19. h3
{[%clk 0:01:23]} 19... c5 {[%clk 0:01:18.6]} 20. Be3 {[%clk 0:01:14.5]} 20...
Nc6 {[%clk 0:01:15.2]} 21. Re1 {[%clk 0:01:08.1]} 21... Rfd8 {[%clk 0:01:10.5]}
22. a3 {[%clk 0:01:07.6]} 22... Nd4 {[%clk 0:01:02.8]} 23. Bf4 {[%clk
0:01:06.2]} 23... h6 {[%clk 0:00:57.9]} 24. b4 {[%clk 0:01:00.7]} 24... g5
{[%clk 0:00:52.6]} 25. Be3 {[%clk 0:00:58.8]} 25... Kg7 {[%clk 0:00:46.2]} 26.
Bxd4 {[%clk 0:00:53]} 1-0

[Event "*** Titled Tuesday Blitz"]
[Site "Chess.com"]
[Date "2021.03.30"]
[Round "6"]
[White "IljaJoke"]
[Black "KaterynaLagno"]
[Result "0-1"]
[WhiteElo "2509"]
[BlackElo "2688"]
[TimeControl "180+1"]
[EndTime "11:04:39 PDT"]
[Termination "KaterynaLagno won by resignation"]

1. e4 {[%clk 0:03:00.9]} 1... e5 {[%clk 0:02:59.8]} 2. Nf3 {[%clk 0:03:01.2]}
2... Nc6 {[%clk 0:03:00.5]} 3. Bc4 {[%clk 0:03:01.4]} 3... Bc5 {[%clk
0:02:59.2]} 4. c3 {[%clk 0:03:01.8]} 4... Nf6 {[%clk 0:02:59.7]} 5. d3 {[%clk
0:03:02.3]} 5... d6 {[%clk 0:02:59.6]} 6. O-O {[%clk 0:03:02.6]} 6... a6 {[%clk
0:02:59.9]} 7. a4 {[%clk 0:03:02.7]} 7... Bb6 {[%clk 0:02:57]} 8. Nbd2 {[%clk
0:02:58.6]} 8... O-O {[%clk 0:02:56]} 9. h3 {[%clk 0:02:56.9]} 9... h6 {[%clk
0:02:56.1]} 10. Re1 {[%clk 0:02:57.1]} 10... Re8 {[%clk 0:02:55.5]} 11. Nf1
{[%clk 0:02:56.4]} 11... Ne7 {[%clk 0:02:34.8]} 12. Ng3 {[%clk 0:02:52.4]} 12...
Ng6 {[%clk 0:02:35]} 13. d4 {[%clk 0:02:49.7]} 13... c6 {[%clk 0:02:16]} 14. Bb3
{[%clk 0:02:45.5]} 14... Be6 {[%clk 0:01:51]} 15. Be3 {[%clk 0:02:12.9]} 15...
exd4 {[%clk 0:01:46.6]} 16. Bxd4 {[%clk 0:02:05.4]} 16... Nf4 {[%clk 0:01:36.1]}
17. Bxe6 {[%clk 0:02:00.6]} 17... Rxe6 {[%clk 0:01:34]} 18. Qd2 {[%clk
0:01:51.1]} 18... N6h5 {[%clk 0:01:28.5]} 19. Nxh5 {[%clk 0:01:42.6]} 19... Nxh5
{[%clk 0:01:29.4]} 20. Bxb6 {[%clk 0:01:41.6]} 20... Qxb6 {[%clk 0:01:28.8]} 21.
a5 {[%clk 0:01:42]} 21... Qd8 {[%clk 0:01:27.2]} 22. g3 {[%clk 0:01:35.2]} 22...
Qe7 {[%clk 0:01:23.8]} 23. Qd4 {[%clk 0:01:25.5]} 23... Re8 {[%clk 0:01:21.4]}
24. Rad1 {[%clk 0:01:12.6]} 24... Nf6 {[%clk 0:01:17.9]} 25. Nh4 {[%clk
0:00:49.2]} 25... Nxe4 {[%clk 0:01:14]} 26. Nf5 {[%clk 0:00:44.7]} 26... Qg5
{[%clk 0:01:13.8]} 27. Nxg7 {[%clk 0:00:29.4]} 27... Qxg7 {[%clk 0:01:10.1]} 0-1

[Event "*** Titled Tuesday Blitz"]
[Site "Chess.com"]
[Date "2021.03.30"]
[Round "6"]
[White "korbul"]
[Black "Rozum_Ivan"]
[Result "0-1"]
[WhiteElo "2576"]
[BlackElo "2743"]
[TimeControl "180+1"]
[EndTime "11:04:45 PDT"]
[Termination "Rozum_Ivan won by resignation"]

1. d4 {[%clk 0:03:00.9]} 1... d5 {[%clk 0:02:56.8]} 2. Nf3 {[%clk 0:03:00.5]}
2... Nf6 {[%clk 0:02:55.3]} 3. Bf4 {[%clk 0:03:00]} 3... c5 {[%clk 0:02:51.8]}
4. e3 {[%clk 0:02:59.6]} 4... Nc6 {[%clk 0:02:51.9]} 5. Nbd2 {[%clk 0:02:58.8]}
5... cxd4 {[%clk 0:02:51.7]} 6. exd4 {[%clk 0:02:58.2]} 6... Bf5 {[%clk
0:02:46.6]} 7. c3 {[%clk 0:02:57]} 7... e6 {[%clk 0:02:47.2]} 8. Qb3 {[%clk
0:02:56.2]} 8... Qb6 {[%clk 0:02:45.5]} 9. Qxb6 {[%clk 0:02:54.4]} 9... axb6
{[%clk 0:02:46.4]} 10. Bb5 {[%clk 0:02:53.8]} 10... Nd7 {[%clk 0:02:45.4]} 11.
Ne5 {[%clk 0:02:52.6]} 11... Ndxe5 {[%clk 0:02:43.8]} 12. Bxe5 {[%clk
0:02:53.5]} 12... Kd7 {[%clk 0:02:41.1]} 13. Bg3 {[%clk 0:02:52.9]} 13... Bd6
{[%clk 0:02:41]} 14. f3 {[%clk 0:02:49.6]} 14... f6 {[%clk 0:02:39.2]} 15. O-O
{[%clk 0:02:47]} 15... h5 {[%clk 0:02:38.1]} 16. Rfe1 {[%clk 0:02:45.4]} 16...
h4 {[%clk 0:02:37.6]} 17. Bxd6 {[%clk 0:02:44.6]} 17... Kxd6 {[%clk 0:02:38.5]}
18. Nf1 {[%clk 0:02:38.3]} 18... Bg6 {[%clk 0:02:27.8]} 19. Ne3 {[%clk
0:02:37.2]} 19... Bh5 {[%clk 0:02:28.2]} 20. Kf2 {[%clk 0:02:34.1]} 20... Ra5
{[%clk 0:02:17.5]} 21. Bf1 {[%clk 0:02:27.9]} 21... g5 {[%clk 0:02:11.9]} 22. a3
{[%clk 0:02:25.5]} 22... Ne7 {[%clk 0:02:11.3]} 23. Rad1 {[%clk 0:02:23.6]}
23... Raa8 {[%clk 0:02:03.9]} 24. c4 {[%clk 0:02:21.6]} 24... Rac8 {[%clk
0:02:02.3]} 25. b4 {[%clk 0:02:20.5]} 25... Bf7 {[%clk 0:01:59.3]} 26. c5+
{[%clk 0:02:20]} 26... bxc5 {[%clk 0:01:57.6]} 27. bxc5+ {[%clk 0:02:19.8]}
27... Kc7 {[%clk 0:01:57.4]} 28. Rb1 {[%clk 0:02:17.7]} 28... Ra8 {[%clk
0:01:57.4]} 29. Rb3 {[%clk 0:02:16.4]} 29... Ra7 {[%clk 0:01:49.2]} 30. Reb1
{[%clk 0:02:15.2]} 30... Rha8 {[%clk 0:01:47.7]} 31. Ng4 {[%clk 0:02:13.9]}
31... Nc6 {[%clk 0:01:34.4]} 32. Nxf6 {[%clk 0:01:43.8]} 32... Nxd4 {[%clk
0:01:34.5]} 33. Rb6 {[%clk 0:01:42.9]} 33... Nc6 {[%clk 0:01:28.2]} 34. Bd3
{[%clk 0:01:36.5]} 34... Nd8 {[%clk 0:01:27.6]} 35. Ng4 {[%clk 0:01:31.5]} 35...
Rxa3 {[%clk 0:01:27.1]} 36. Ne5 {[%clk 0:01:31.5]} 36... Be8 {[%clk 0:01:24.7]}
37. R6b2 {[%clk 0:01:25.2]} 37... Ra2 {[%clk 0:01:23.5]} 38. g3 {[%clk
0:01:24.6]} 38... Rxb2+ {[%clk 0:01:21.4]} 39. Rxb2 {[%clk 0:01:25.5]} 39... Ra3
{[%clk 0:01:20.2]} 40. f4 {[%clk 0:01:20.4]} 40... hxg3+ {[%clk 0:01:17.9]} 41.
Kxg3 {[%clk 0:01:20]} 41... Nc6 {[%clk 0:01:08.1]} 42. Rd2 {[%clk 0:01:08.6]}
42... Nxe5 {[%clk 0:01:07.4]} 43. fxe5 {[%clk 0:01:08.2]} 43... Bg6 {[%clk
0:01:05.4]} 0-1

[Event "*** Titled Tuesday Blitz"]
[Site "Chess.com"]
[Date "2021.03.30"]
[Round "6"]
[White "Danny_Billiards"]
[Black "OK97"]
[Result "0-1"]
[WhiteElo "2582"]
[BlackElo "2802"]
[TimeControl "180+1"]
[EndTime "11:04:48 PDT"]
[Termination "OK97 won by checkmate"]

1. d4 {[%clk 0:03:00.9]} 1... Nf6 {[%clk 0:02:58.7]} 2. Nf3 {[%clk 0:03:00.7]}
2... e6 {[%clk 0:02:58]} 3. Bf4 {[%clk 0:02:58]} 3... c5 {[%clk 0:02:58.1]} 4.
e3 {[%clk 0:02:56.3]} 4... cxd4 {[%clk 0:02:58.3]} 5. exd4 {[%clk 0:02:56]} 5...
b6 {[%clk 0:02:58.8]} 6. c3 {[%clk 0:02:54.8]} 6... Be7 {[%clk 0:02:58.8]} 7. h3
{[%clk 0:02:54.6]} 7... O-O {[%clk 0:02:58.8]} 8. Bd3 {[%clk 0:02:55.1]} 8...
Ba6 {[%clk 0:02:58.2]} 9. O-O {[%clk 0:02:51.6]} 9... Bxd3 {[%clk 0:02:57.6]}
10. Qxd3 {[%clk 0:02:52.5]} 10... d6 {[%clk 0:02:57.6]} 11. Nbd2 {[%clk
0:02:53]} 11... Nbd7 {[%clk 0:02:46.9]} 12. Qe2 {[%clk 0:02:47.2]} 12... Qc7
{[%clk 0:02:38.7]} 13. a4 {[%clk 0:02:44.6]} 13... a6 {[%clk 0:02:29.2]} 14. Bh2
{[%clk 0:02:42.8]} 14... Qc6 {[%clk 0:02:26.8]} 15. Ne1 {[%clk 0:02:35.1]} 15...
b5 {[%clk 0:02:25.4]} 16. axb5 {[%clk 0:02:32.9]} 16... axb5 {[%clk 0:02:26.3]}
17. Nd3 {[%clk 0:02:31.1]} 17... Nd5 {[%clk 0:02:23.9]} 18. Bg3 {[%clk
0:02:15.5]} 18... N7b6 {[%clk 0:02:23.4]} 19. Ne4 {[%clk 0:02:01.8]} 19... Nc4
{[%clk 0:02:10.9]} 20. Kh2 {[%clk 0:01:52.5]} 20... Rxa1 {[%clk 0:01:44.1]} 21.
Rxa1 {[%clk 0:01:51.9]} 21... f5 {[%clk 0:01:44.8]} 22. Nxd6 {[%clk 0:01:38.6]}
22... Bxd6 {[%clk 0:01:28.9]} 23. Qxe6+ {[%clk 0:01:38.1]} 23... Kh8 {[%clk
0:01:29.4]} 24. Ne5 {[%clk 0:01:14.7]} 24... Qb7 {[%clk 0:01:28.7]} 25. f4
{[%clk 0:00:22.5]} 25... Nde3 {[%clk 0:01:10.7]} 26. Nd7 {[%clk 0:00:17.1]}
26... Qxg2# {[%clk 0:01:09.7]} 0-1

[Event "*** Titled Tuesday Blitz"]
[Site "Chess.com"]
[Date "2021.03.30"]
[Round "6"]
[White "Grieve72"]
[Black "KarateBaby"]
[Result "0-1"]
[WhiteElo "2463"]
[BlackElo "2322"]
[TimeControl "180+1"]
[EndTime "11:04:50 PDT"]
[Termination "KarateBaby won by checkmate"]

1. d4 {[%clk 0:03:00.9]} 1... Nf6 {[%clk 0:02:56.7]} 2. Bg5 {[%clk 0:03:00.4]}
2... g6 {[%clk 0:02:57.6]} 3. Bxf6 {[%clk 0:03:00.4]} 3... exf6 {[%clk 0:02:56]}
4. e3 {[%clk 0:03:00.6]} 4... b6 {[%clk 0:02:54.1]} 5. c4 {[%clk 0:02:56.9]}
5... Bb7 {[%clk 0:02:55]} 6. Nc3 {[%clk 0:02:56.9]} 6... Bg7 {[%clk 0:02:55.4]}
7. Nf3 {[%clk 0:02:56.2]} 7... O-O {[%clk 0:02:55.9]} 8. Bd3 {[%clk 0:02:45.7]}
8... f5 {[%clk 0:02:48.6]} 9. Qe2 {[%clk 0:02:36]} 9... d6 {[%clk 0:02:48.7]}
10. O-O-O {[%clk 0:02:34.9]} 10... Nd7 {[%clk 0:02:47.8]} 11. h3 {[%clk
0:02:31.3]} 11... Nf6 {[%clk 0:02:47.8]} 12. Rdg1 {[%clk 0:02:29.3]} 12... h5
{[%clk 0:02:46.9]} 13. Kb1 {[%clk 0:02:16.2]} 13... c5 {[%clk 0:02:23.5]} 14. d5
{[%clk 0:02:13.9]} 14... a6 {[%clk 0:02:23.8]} 15. g4 {[%clk 0:02:06.1]} 15...
fxg4 {[%clk 0:02:21.4]} 16. hxg4 {[%clk 0:02:07]} 16... Nxg4 {[%clk 0:02:19.9]}
17. Ne4 {[%clk 0:01:56.4]} 17... b5 {[%clk 0:02:14]} 18. Qf1 {[%clk 0:01:34.1]}
18... bxc4 {[%clk 0:02:07.4]} 19. Bxc4 {[%clk 0:01:35]} 19... Bc8 {[%clk
0:02:07.6]} 20. Nh4 {[%clk 0:01:28.2]} 20... Rb8 {[%clk 0:02:05.3]} 21. b3
{[%clk 0:01:25.6]} 21... Re8 {[%clk 0:02:05.4]} 22. Qg2 {[%clk 0:01:23.7]} 22...
Rxe4 {[%clk 0:01:59.9]} 23. Qxe4 {[%clk 0:01:18.9]} 23... Qf6 {[%clk 0:01:59.2]}
24. Qe8+ {[%clk 0:00:44.8]} 24... Kh7 {[%clk 0:01:58.1]} 25. Kc1 {[%clk
0:00:45]} 25... Nxf2 {[%clk 0:01:48]} 26. Kd2 {[%clk 0:00:28.2]} 26... Bg4
{[%clk 0:01:46.5]} 27. Qxb8 {[%clk 0:00:15.1]} 27... Qb2+ {[%clk 0:01:45.7]} 28.
Ke1 {[%clk 0:00:15]} 28... Nd3+ {[%clk 0:01:31.7]} 29. Bxd3 {[%clk 0:00:13.4]}
29... Bc3+ {[%clk 0:01:29.2]} 30. Kf1 {[%clk 0:00:12.9]} 30... Qc1+ {[%clk
0:01:30.1]} 31. Kf2 {[%clk 0:00:11.1]} 31... Qd2+ {[%clk 0:01:29.3]} 32. Kg3
{[%clk 0:00:08.9]} 32... Be5# {[%clk 0:01:27.5]} 0-1

[Event "*** Titled Tuesday Blitz"]
[Site "Chess.com"]
[Date "2021.03.30"]
[Round "6"]
[White "nrvisakh"]
[Black "Spriteball"]
[Result "1-0"]
[WhiteElo "2792"]
[BlackElo "2380"]
[TimeControl "180+1"]
[EndTime "11:04:51 PDT"]
[Termination "nrvisakh won by resignation"]

1. e4 {[%clk 0:03:00.9]} 1... e5 {[%clk 0:02:59.9]} 2. Nf3 {[%clk 0:03:00.1]}
2... Nc6 {[%clk 0:03:00.3]} 3. Nc3 {[%clk 0:02:55.7]} 3... Nf6 {[%clk
0:03:00.1]} 4. Bb5 {[%clk 0:02:55.6]} 4... Bc5 {[%clk 0:02:53.2]} 5. O-O {[%clk
0:02:44.5]} 5... d6 {[%clk 0:02:47.2]} 6. d4 {[%clk 0:02:22.7]} 6... exd4 {[%clk
0:02:46.2]} 7. Nxd4 {[%clk 0:02:22.6]} 7... Bd7 {[%clk 0:02:42.1]} 8. Nxc6
{[%clk 0:02:21.2]} 8... bxc6 {[%clk 0:02:42.2]} 9. Bd3 {[%clk 0:02:19.1]} 9...
O-O {[%clk 0:02:41.6]} 10. Bg5 {[%clk 0:02:18.6]} 10... h6 {[%clk 0:02:41.2]}
11. Bh4 {[%clk 0:02:17.9]} 11... Qe7 {[%clk 0:02:39.4]} 12. Kh1 {[%clk
0:02:17.1]} 12... Rab8 {[%clk 0:02:31.4]} 13. f4 {[%clk 0:02:16.2]} 13... Rxb2
{[%clk 0:02:25.7]} 14. Na4 {[%clk 0:02:15.6]} 14... Bd4 {[%clk 0:02:07.6]} 15.
c3 {[%clk 0:02:10.7]} 15... Bxc3 {[%clk 0:01:52.3]} 16. Nxc3 {[%clk 0:02:10.5]}
16... Qe6 {[%clk 0:01:52.7]} 17. e5 {[%clk 0:01:58.8]} 17... Ng4 {[%clk
0:01:43.8]} 18. Qf3 {[%clk 0:01:28.8]} 18... dxe5 {[%clk 0:01:22.2]} 19. f5
{[%clk 0:01:28.6]} 19... Qd6 {[%clk 0:01:22.5]} 20. Ne4 {[%clk 0:01:28.7]} 20...
Qd4 {[%clk 0:01:17]} 21. Qxg4 {[%clk 0:01:22.2]} 21... Qxd3 {[%clk 0:01:17.1]}
22. Rad1 {[%clk 0:01:21.1]} 22... Qb5 {[%clk 0:01:00.1]} 23. a4 {[%clk
0:01:12.1]} 23... Qe2 {[%clk 0:00:50.1]} 24. Nf6+ {[%clk 0:01:10.9]} 24... Kh8
{[%clk 0:00:49.7]} 25. Qxe2 {[%clk 0:01:11.8]} 25... Rxe2 {[%clk 0:00:49.5]} 26.
Nxd7 {[%clk 0:01:12.7]} 26... Rc8 {[%clk 0:00:47.4]} 27. f6 {[%clk 0:01:11.7]}
27... g5 {[%clk 0:00:46.5]} 28. Bg3 {[%clk 0:01:11.9]} 28... Re8 {[%clk
0:00:43.4]} 29. Nxe5 {[%clk 0:00:59.6]} 29... R2xe5 {[%clk 0:00:43]} 30. Bxe5
{[%clk 0:01:00.5]} 30... Rxe5 {[%clk 0:00:43.5]} 31. Rd7 {[%clk 0:01:00.3]}
31... Kg8 {[%clk 0:00:40.7]} 32. Rxc7 {[%clk 0:00:58.9]} 1-0

[Event "*** Titled Tuesday Blitz"]
[Site "Chess.com"]
[Date "2021.03.30"]
[Round "6"]
[White "jacky72"]
[Black "Twitch_ElhamBlitz05"]
[Result "1-0"]
[WhiteElo "2721"]
[BlackElo "2862"]
[TimeControl "180+1"]
[EndTime "11:04:53 PDT"]
[Termination "jacky72 won on time"]

1. d4 {[%clk 0:03:00.9]} 1... Nf6 {[%clk 0:03:00.3]} 2. c4 {[%clk 0:03:01.4]}
2... e6 {[%clk 0:03:00.8]} 3. Nf3 {[%clk 0:03:01.5]} 3... c5 {[%clk 0:03:01.3]}
4. d5 {[%clk 0:03:01.6]} 4... exd5 {[%clk 0:03:02.2]} 5. cxd5 {[%clk 0:03:02.5]}
5... d6 {[%clk 0:03:03.1]} 6. Nc3 {[%clk 0:03:03]} 6... g6 {[%clk 0:03:03.8]} 7.
Nd2 {[%clk 0:03:03.6]} 7... Bg7 {[%clk 0:03:04.1]} 8. e4 {[%clk 0:03:04.1]} 8...
O-O {[%clk 0:03:05]} 9. Be2 {[%clk 0:03:04.7]} 9... Re8 {[%clk 0:03:05.7]} 10.
O-O {[%clk 0:03:05.3]} 10... a6 {[%clk 0:03:06.4]} 11. a4 {[%clk 0:03:05.8]}
11... Nbd7 {[%clk 0:03:07]} 12. h3 {[%clk 0:03:06.3]} 12... h5 {[%clk
0:03:04.8]} 13. Ra3 {[%clk 0:03:04.5]} 13... Rb8 {[%clk 0:03:04.3]} 14. f4
{[%clk 0:03:03.6]} 14... Qc7 {[%clk 0:02:52.6]} 15. Kh1 {[%clk 0:03:01.6]} 15...
c4 {[%clk 0:02:37.9]} 16. Bxc4 {[%clk 0:02:55.4]} 16... Nc5 {[%clk 0:02:37.4]}
17. Qc2 {[%clk 0:02:43.8]} 17... Bd7 {[%clk 0:02:22.6]} 18. b4 {[%clk
0:02:43.8]} 18... Nxa4 {[%clk 0:02:12.5]} 19. Nxa4 {[%clk 0:02:41.3]} 19... Bxa4
{[%clk 0:02:11.3]} 20. Rxa4 {[%clk 0:02:38]} 20... b5 {[%clk 0:02:11.1]} 21.
Rxa6 {[%clk 0:02:38.4]} 21... bxc4 {[%clk 0:02:06.7]} 22. Rc6 {[%clk 0:02:37.3]}
22... Qd7 {[%clk 0:01:47.8]} 23. Qxc4 {[%clk 0:02:33.6]} 23... h4 {[%clk
0:01:46.8]} 24. e5 {[%clk 0:02:00.2]} 24... dxe5 {[%clk 0:01:18.5]} 25. fxe5
{[%clk 0:01:59.8]} 25... Rxe5 {[%clk 0:00:48.1]} 26. Bb2 {[%clk 0:01:55.3]}
26... Rxd5 {[%clk 0:00:12.3]} 27. Bxf6 {[%clk 0:01:54.8]} 27... Rxd2 {[%clk
0:00:06.4]} 28. Bxg7 {[%clk 0:01:54.9]} 28... Rd1 {[%clk 0:00:03.8]} 29. Be5
{[%clk 0:01:35.7]} 29... Re8 {[%clk 0:00:03.5]} 30. Rxg6+ {[%clk 0:01:34]} 30...
Kh7 {[%clk 0:00:01.3]} 31. Rg7+ {[%clk 0:01:34.1]} 1-0